[Event "7. Arber-Senioren-Cup 2019"]
[Site "Bodenmais"]
[Date "2019.07.28"]
[Round "2.26"]
[White "Busch, Joerg"]
[Black "Riess, Michael"]
[Result "1/2-1/2"]
[ECO "B01"]
[WhiteElo "1851"]
[BlackElo "1686"]
[Annotator "NA RC"]
[PlyCount "118"]
[EventDate "2019.07.27"]
[EventType "swiss"]
[EventCountry "GER"]
[SourceTitle "playchess.com"]
[Source "ChessBase"]
[SourceQuality "1"]
[TimeControl "5400+30"]

1. e4 {[%emt 0:00:00]} d5 {[%emt 0:00:00]} 2. exd5 {[%emt 0:00:00]} Nf6 {[%emt 0:00:00]} 3. d4 {[%emt 0:00:00]} Nxd5 {[%emt 0:00:00]} 4. c4 {[%emt 0:00:00]} Nb4 {[%emt 0:00:00]} 5. a3 {[%emt 0:00:00]} N4c6 {[%emt 0:00:00]} 6. d5 {[%emt 0:00:00]} Ne5 {[%emt 0:00:00]} 7. Bf4 {[%emt 0:00:00]} Ng6 {[%emt 0:00:00]} 8. Bg3 {[%emt 0:00:00]} e5 {[%emt 0:00:00]} 9. Nc3 {[%emt 0:00:00]} a6 {[%emt 0:00:00]} 10. Nf3 {[%emt 0:00:00]} Bg4 {[%emt 0:00:00]} 11. Be2 {[%emt 0:00:00]} Bxf3 {[%emt 0:00:00]} 12. Bxf3 {[%emt 0:00:00]} Nd7 {[%emt 0:00:00]} 13. Be4 {[%emt 0:00:00]} Be7 {[%emt 0:00:00]} 14. b4 {[%emt 0:00:00]} Rb8 {[%emt 0:00:00]} 15. f3 {[%emt 0:00:00]} Bh4 {[%emt 0:00:00]} 16. Bxh4 {[%emt 0:00:00]} Qxh4+ {[%emt 0:00:00]} 17. g3 {[%emt 0:00:00]} Qh6 {[%emt 0:00:00]} 18. Qd2 {[%emt 0:03:24]} Qxd2+ {[%emt 0:00:00]} 19. Kxd2 {[%emt 0:00:12]} O-O {[%emt 0:00:00]} 20. Bf5 {[%emt 0:01:06]} Nf6 {[%emt 0:00:00]} 21. Rhe1 {[%emt 0:01:38]} Rfe8 {[%emt 0:00:00]} 22. Re2 {[%emt 0:00:53]} Re7 {[%emt 0:00:00]} 23. Rae1 {[%emt 0:00:16]} Rbe8 {[%emt 0:00:00]} 24. Bc2 {[%emt 0:01:19]} Kf8 {[%emt 0:00:00]} 25. Ba4 {[%emt 0:02:50]} Rd8 {[%emt 0:00:00]} 26. Kc1 {[%emt 0:00:56]} Nd7 {[%emt 0:00:20]} 27. Ne4 {[%emt 0:04:52]} Nb6 {[%emt 0:02:09]} 28. Bb3 {[%emt 0:00:13]} Nd7 {[%emt 0:01:34]} 29. Kb2 {[%emt 0:02:22]} b6 {[%emt 0:02:23]} 30. Bc2 {[%emt 0:02:53]} f6 {[%emt 0:04:14]} 31. h4 {[%emt 0:02:26]} Nh8 {[%emt 0:00:56]} 32. g4 {[%emt 0:02:14]} Nf7 {[%emt 0:00:58]} 33. Ng3 {[%emt 0:01:56]} g6 {[%emt 0:01:05]} 34. Kc3 {[%emt 0:02:53]} Nd6 {[%emt 0:01:28]} 35. Bd3 {[%emt 0:09:37]} Rde8 {[%emt 0:02:29]} 36. a4 {[%emt 0:01:55]} a5 {[%emt 0:02:05]} 37. bxa5 {[%emt 0:01:38]} bxa5 {[%emt 0:00:13]} 38. Rb2 {[%emt 0:00:49]} Nc5 {[%emt 0:01:32]} 39. Bc2 {[%emt 0:00:33]} e4 {[%emt 0:12:20]} 40. fxe4 {[%emt 0:06:30]} Ndxe4+ {[%emt 0:01:01]} 41. Nxe4 {[%emt 0:00:20]} Nxe4+ {[%emt 0:04:38]} 42. Kd4 {[%emt 0:07:21]} c5+ {[%emt 0:05:26]} 43. dxc6 {[%emt 0:02:28]} Rd8+ {[%emt 0:00:29]} 44. Ke3 {[%emt 0:00:57]} Nd6+ {[%emt 0:02:50]} 45. Kf2 {[%emt 0:00:46]} Rxe1 {[%emt 0:01:43]} 46. Kxe1 {[%emt 0:00:28]} Rc8 {[%emt 0:00:29]} 47. Rb6 {[%emt 0:05:49]} Nxc4 {[%emt 0:05:27]} 48. Ra6 {[%emt 0:00:28]} Re8+ {[%emt 0:02:15]} 49. Kf2 {[%emt 0:06:08]} Ne3 {[%emt 0:05:06]} 50. Bb1 {[%emt 0:03:35]} Nxg4+ {[%emt 0:00:54]} 51. Kg3 {[%emt 0:01:45]} f5 {[%emt 0:01:52]} 52. Ra7 {[%emt 0:03:22]} Ne5 {[%emt 0:07:01]} 53. c7 {[%emt 0:01:29]} Rc8 {[%emt 0:02:37]} 54. Rxa5 {[%emt 0:02:53]} Nc6 {[%emt 0:01:27]} 55. Rc5 {[%emt 0:00:38]} Rxc7 {[%emt 0:01:16]} 56. Bd3 {[%emt 0:01:54]} Ke7 {[%emt 0:01:07]} 57. Bb5 {[%emt 0:02:01]} Kd6 {[%emt 0:01:30]} 58. Rc1 {[%emt 0:00:44]} Nd4 {[%emt 0:03:26]} 59. Rd1 {[%emt 0:00:24]} Ke5 {[%emt 0:01:25]} 1/2-1/2

[Event "7. Arber-Senioren-Cup 2019"]
[Site "Bodenmais"]
[Date "2019.07.28"]
[Round "2.27"]
[White "Bauer, Werner"]
[Black "Yon, Gregory"]
[Result "1-0"]
[ECO "A04"]
[WhiteElo "1881"]
[BlackElo "1658"]
[Annotator "NA RC"]
[PlyCount "109"]
[EventDate "2019.07.27"]
[EventType "swiss"]
[EventCountry "GER"]
[SourceTitle "playchess.com"]
[Source "ChessBase"]
[SourceQuality "1"]
[TimeControl "5400+30"]

1. Nf3 {[%emt 0:00:00]} f5 {[%emt 0:00:00]} 2. d3 {[%emt 0:00:00]} Nf6 {[%emt 0:00:00]} 3. e4 {[%emt 0:00:00]} d6 {[%emt 0:00:00]} 4. exf5 {[%emt 0:00:00]} Bxf5 {[%emt 0:00:00]} 5. d4 {[%emt 0:00:00]} Nbd7 {[%emt 0:00:00]} 6. Bd3 {[%emt 0:00:00]} e6 {[%emt 0:00:00]} 7. O-O {[%emt 0:00:00]} Be7 {[%emt 0:00:00]} 8. Ng5 {[%emt 0:00:00]} Nf8 {[%emt 0:00:00]} 9. Re1 {[%emt 0:00:00]} Qd7 {[%emt 0:00:00]} 10. Bxf5 {[%emt 0:02:42]} exf5 {[%emt 0:00:00]} 11. Qe2 {[%emt 0:00:35]} h6 {[%emt 0:00:00]} 12. Nh3 {[%emt 0:02:24]} g5 {[%emt 0:00:00]} 13. Nc3 {[%emt 0:07:40]} Rh7 {[%emt 0:00:00]} 14. d5 {[%emt 0:02:31]} O-O-O {[%emt 0:00:00]} 15. Be3 {[%emt 0:01:10]} Kb8 {[%emt 0:00:00]} 16. Bd4 {[%emt 0:00:17]} Ng4 {[%emt 0:00:00]} 17. f3 {[%emt 0:04:12]} Bf6 {[%emt 0:00:00]} 18. Bxa7+ {[%emt 0:02:35]} Kxa7 {[%emt 0:00:00]} 19. fxg4 {[%emt 0:01:53]} Bd4+ {[%emt 0:02:09]} 20. Nf2 {[%emt 0:05:17]} Bb6 {[%emt 0:03:56]} 21. a4 {[%emt 0:06:32]} fxg4 {[%emt 0:03:54]} 22. a5 {[%emt 0:05:03]} Bc5 {[%emt 0:00:16]} 23. Na4 {[%emt 0:03:14]} g3 {[%emt 0:05:01]} 24. hxg3 {[%emt 0:01:17]} Rf7 {[%emt 0:00:14]} 25. Nxc5 {[%emt 0:01:11]} dxc5 {[%emt 0:00:09]} 26. c4 {[%emt 0:01:55]} Qf5 {[%emt 0:03:33]} 27. Qe3 {[%emt 0:02:38]} Nd7 {[%emt 0:03:41]} 28. Nd3 {[%emt 0:04:36]} Rdf8 {[%emt 0:09:22]} 29. Nxc5 Nxc5 {[%emt 0:06:09]} 30. Qxc5+ {[%emt 0:02:35]} Kb8 {[%emt 0:00:34]} 31. a6 {[%emt 0:07:25]} Qf2+ {[%emt 0:00:53]} 32. Qxf2 {[%emt 0:00:14]} Rxf2 {[%emt 0:00:19]} 33. axb7 {[%emt 0:04:50]} Kxb7 {[%emt 0:00:15]} 34. Rf1 {[%emt 0:00:31]} R2f6 {[%emt 0:00:52]} 35. Rxf6 {[%emt 0:10:23]} Rxf6 {[%emt 0:00:27]} 36. c5 {[%emt 0:00:14]} Rf7 {[%emt 0:03:19]} 37. Re1 {[%emt 0:00:48]} g4 {[%emt 0:09:52]} 38. Re4 {[%emt 0:05:54]} h5 {[%emt 0:01:57]} 39. Re5 {[%emt 0:02:05]} Rh7 {[%emt 0:00:33]} 40. Kf2 {[%emt 0:00:55]} Ka6 {[%emt 0:01:04]} 41. Ke3 {[%emt 0:01:11]} Kb5 {[%emt 0:00:11]} 42. Kd4 {[%emt 0:00:25]} h4 {[%emt 0:00:40]} 43. gxh4 {[%emt 0:01:49]} Rxh4 {[%emt 0:00:09]} 44. Re4 {[%emt 0:00:59]} Rh1 {[%emt 0:02:07]} 45. Rxg4 {[%emt 0:00:23]} Rd1+ {[%emt 0:00:11]} 46. Ke5 {[%emt 0:00:37]} Kxc5 {[%emt 0:00:17]} 47. b4+ {[%emt 0:01:33]} Kb5 {[%emt 0:00:34]} 48. Re4 {[%emt 0:00:18]} Rg1 {[%emt 0:01:54]} 49. g4 {[%emt 0:00:01]} c5 {[%emt 0:05:31]} 50. d6 {[%emt 0:05:34]} Rd1 {[%emt 0:01:22]} 51. Ke6 {[%emt 0:03:37]} Kc6 {[%emt 0:00:46]} 52. bxc5 {[%emt 0:00:17]} Kxc5 {[%emt 0:00:53]} 53. d7 {[%emt 0:00:10]} Rd6+ {[%emt 0:02:12]} 54. Ke7 {[%emt 0:00:13]} Kd5 {[%emt 0:01:05]} 55. Rd4+ {[%emt 0:00:23]} 1-0

[Event "7. Arber-Senioren-Cup 2019"]
[Site "Bodenmais"]
[Date "2019.07.29"]
[Round "3.1"]
[White "Blechzin, Igor"]
[Black "Hamlack, Heinz"]
[Result "1-0"]
[ECO "A18"]
[WhiteElo "2221"]
[BlackElo "1986"]
[Annotator "ChessBase"]
[PlyCount "61"]
[EventDate "2019.07.27"]
[EventType "swiss"]
[EventCountry "GER"]
[SourceTitle "playchess.com"]
[Source "ChessBase"]
[SourceQuality "1"]
[TimeControl "5400+30"]

1. c4 {[%emt 0:00:00]} Nf6 {[%emt 0:00:00]} 2. Nc3 {[%emt 0:00:00]} e6 {[%emt 0:00:00]} 3. e4 {[%emt 0:00:00]} Nc6 {[%emt 0:00:00]} 4. d4 {[%emt 0:00:00]} Bb4 {[%emt 0:00:00]} 5. e5 {[%emt 0:00:00]} Ne4 {[%emt 0:00:00]} 6. Nge2 {[%emt 0:00:00]} d6 {[%emt 0:00:00]} 7. exd6 {[%emt 0:00:00]} Nxd6 {[%emt 0:00:00]} 8. a3 {[%emt 0:00:00]} Bxc3+ {[%emt 0:00:00]} 9. Nxc3 {[%emt 0:00:00]} O-O {[%emt 0:00:00]} 10. d5 {[%emt 0:01:00]} exd5 {[%emt 0:01:20]} 11. cxd5 {[%emt 0:00:09]} Re8+ {[%emt 0:04:19]} 12. Be2 {[%emt 0:00:50]} Ne5 {[%emt 0:00:13]} 13. O-O {[%emt 0:00:15]} a6 {[%emt 0:10:49]} 14. Qd4 {[%emt 0:11:00]} b6 {[%emt 0:13:50]} 15. Bf4 {[%emt 0:06:13]} Nf5 {[%emt 0:06:29]} 16. Qd2 {[%emt 0:04:22]} Nd6 {[%emt 0:04:27]} 17. Rfe1 {[%emt 0:05:47]} Bf5 {[%emt 0:03:49]} 18. Bxa6 {[%emt 0:08:08]} Nf3+ {[%emt 0:09:24]} 19. gxf3 {[%emt 0:00:13]} Rxa6 {[%emt 0:00:04]} 20. Bxd6 {[%emt 0:01:46]} cxd6 {[%emt 0:02:01]} 21. Qf4 {[%emt 0:02:47]} Rxe1+ {[%emt 0:06:12]} 22. Rxe1 {[%emt 0:00:08]} g6 {[%emt 0:00:04]} 23. Nb5 {[%emt 0:01:48]} Qd7 {[%emt 0:09:40]} 24. Nxd6 {[%emt 0:00:34]} b5 {[%emt 0:04:42]} 25. Re8+ {[%emt 0:08:10]} Kg7 {[%emt 0:00:11]} 26. Qe5+ {[%emt 0:01:00]} Kh6 {[%emt 0:01:00]} 27. Rd8 {[%emt 0:01:22]} Qa7 {[%emt 0:02:25]} 28. Nxf5+ {[%emt 0:02:49]} gxf5 {[%emt 0:00:07]} 29. Rd6+ {[%emt 0:01:01]} Rxd6 {[%emt 0:01:22]} 30. Qxd6+ {[%emt 0:00:07]} Kg5 {[%emt 0:00:27]} 31. h4+ {[%emt 0:00:59]} 1-0

[Event "7. Arber-Senioren-Cup 2019"]
[Site "Bodenmais"]
[Date "2019.07.29"]
[Round "3.2"]
[White "Lorenc, Tomas"]
[Black "Hilbig, Dieter"]
[Result "1-0"]
[ECO "A38"]
[WhiteElo "2158"]
[BlackElo "1943"]
[Annotator "NA"]
[PlyCount "37"]
[EventDate "2019.07.27"]
[EventType "swiss"]
[EventCountry "GER"]
[SourceTitle "playchess.com"]
[Source "ChessBase"]
[SourceQuality "1"]
[TimeControl "5400+30"]

1. c4 {[%emt 0:00:00]} c5 {[%emt 0:00:00]} 2. g3 {[%emt 0:00:00]} Nc6 {[%emt 0:00:00]} 3. Bg2 {[%emt 0:00:00]} Nf6 {[%emt 0:00:00]} 4. Nc3 {[%emt 0:00:00]} g6 {[%emt 0:00:00]} 5. Nf3 {[%emt 0:00:00]} Bg7 {[%emt 0:00:00]} 6. O-O {[%emt 0:00:00]} O-O {[%emt 0:00:00]} 7. d3 {[%emt 0:00:00]} a6 {[%emt 0:00:00]} 8. Be3 {[%emt 0:00:00]} b6 {[%emt 0:00:00]} 9. Rb1 {[%emt 0:00:00]} Bb7 {[%emt 0:00:00]} 10. a3 {[%emt 0:00:00]} d5 {[%emt 0:00:00]} 11. cxd5 {[%emt 0:00:00]} Nxd5 {[%emt 0:00:00]} 12. Nxd5 {[%emt 0:00:00]} Qxd5 {[%emt 0:00:00]} 13. b4 {[%emt 0:00:00]} Na7 {[%emt 0:00:00]} 14. bxc5 {[%emt 0:00:00]} Nb5 {[%emt 0:00:00]} 15. Qd2 {[%emt 0:03:50]} bxc5 {[%emt 0:00:00]} 16. Nh4 {[%emt 0:01:25]} Qd7 {[%emt 0:07:38]} 17. Bxb7 {[%emt 0:00:09]} Qxb7 {[%emt 0:00:07]} 18. a4 {[%emt 0:00:08]} Rfc8 {[%emt 0:03:02]} 19. Rfc1 {[%emt 0:00:51]} 1-0

[Event "7. Arber-Senioren-Cup 2019"]
[Site "Bodenmais"]
[Date "2019.07.29"]
[Round "3.3"]
[White "Kuempers, Ulrich"]
[Black "Koehler, Gerhard"]
[Result "1-0"]
[ECO "A53"]
[WhiteElo "2030"]
[BlackElo "2197"]
[Annotator "NA"]
[PlyCount "66"]
[EventDate "2019.07.27"]
[EventType "swiss"]
[EventCountry "GER"]
[SourceTitle "playchess.com"]
[Source "ChessBase"]
[SourceQuality "1"]
[TimeControl "5400+30"]

1. d4 {[%emt 0:00:00]} Nf6 {[%emt 0:00:00]} 2. c4 {[%emt 0:00:00]} d6 {[%emt 0:00:00]} 3. Nc3 {[%emt 0:00:00]} Nbd7 {[%emt 0:00:00]} 4. e4 {[%emt 0:00:00]} e5 {[%emt 0:00:00]} 5. d5 {[%emt 0:00:00]} Nc5 {[%emt 0:00:00]} 6. Bd3 {[%emt 0:00:00] A53: Old Indian Defence without Nf3} a5 {[%emt 0:00:00]} 7. Bc2 {[%emt 0:00:00]} Be7 {[%emt 0:00:00]} 8. h3 {[%emt 0:00:00]} O-O {[%emt 0:00:00]} 9. Be3 {[%emt 0:00:00]} Nfd7 {[%emt 0:00:00]} 10. Nf3 {[%emt 0:00:00]} Bf6 $146 {[%emt 0:00:00]} ({Predecessor:} 10... Re8 11. O-O Rb8 12. a3 Bf8 13. Qe2 c6 14. b4 {1-0 (28) Anastasian,A (2545)-Alfonsi,J (2100) Bastia 1999}) 11. b3 {[%emt 0:00:00]} g6 {[%emt 0:00:00]} 12. a3 {[%emt 0:00:00]} Bg7 {[%emt 0:00:00]} 13. b4 {[%emt 0:00:00]} axb4 {[%emt 0:00:00]} 14. axb4 {[%emt 0:00:00]} Rxa1 {[%emt 0:00:00]} 15. Qxa1 {[%emt 0:00:00]} Na6 {[%emt 0:00:00]} 16. Qb1 {[%emt 0:00:00]} Nf6 {[%emt 0:00:00]} 17. g4 {[%emt 0:00:00]} c5 {[%emt 0:00:00]} 18. bxc5 {[%emt 0:15:16]} Qa5 {[%emt 0:00:00]} 19. Qb2 {[%emt 0:19:33]} Nxc5 {[%emt 0:04:31]} 20. O-O {[%emt 0:01:04]} h5 {[%emt 0:03:35]} 21. g5 {[%emt 0:01:57]} Nh7 {[%emt 0:00:30]} 22. Kg2 {[%emt 0:29:33]} f6 23. h4 {[%emt 0:04:05]} Qd8 {[%emt 0:22:16]} 24. Qc1 {[%emt 0:00:30]} Qd7 {[%emt 0:01:30]} 25. Nh2 {[%emt 0:08:37]} Qh3+ {[%emt 0:01:57]} 26. Kh1 {[%emt 0:00:01]} Qxh4 {[%emt 0:05:22]} 27. gxf6 {[%emt 0:09:40]} Rxf6 {[%emt 0:05:35]} 28. f3 {[%emt 0:01:59]} g5 {[%emt 0:05:49]} 29. Nb5 $2 {[%emt 0:06:54]} (29. Bf2 $17 {is more resistant.} Qh3 30. Ne2) 29... Bf8 {[%emt 0:05:46]} 30. f4 {[%emt 0:01:32]} gxf4 {[%emt 0:10:38]} 31. Rg1+ $19 {[%emt 0:00:33]} (31. Bf2 Qh3 32. Rg1+ Kf7 33. Qf1) 31... Bg4 {[%emt 0:07:30]} 32. Bd2 {[%emt 0:00:54]} Kh8 {[%emt 0:01:40]} 33. Qf1 {[%emt 0:00:58]} f3 1-0

[Event "7. Arber-Senioren-Cup 2019"]
[Site "Bodenmais"]
[Date "2019.07.29"]
[Round "3.4"]
[White "Glaessl, Matthias"]
[Black "Berger, Siegfried"]
[Result "1-0"]
[ECO "C42"]
[WhiteElo "2148"]
[BlackElo "1548"]
[Annotator "NA"]
[PlyCount "69"]
[EventDate "2019.07.27"]
[EventType "swiss"]
[EventCountry "GER"]
[SourceTitle "playchess.com"]
[Source "ChessBase"]
[SourceQuality "1"]
[TimeControl "5400+30"]

1. e4 {[%emt 0:00:00]} e5 {[%emt 0:00:00]} 2. Nf3 {[%emt 0:00:00]} Nf6 {[%emt 0:00:00]} 3. Nxe5 {[%emt 0:00:00]} d6 {[%emt 0:00:00]} 4. Nf3 {[%emt 0:00:00]} Nxe4 {[%emt 0:00:00]} 5. Nc3 {[%emt 0:00:00]} Nxc3 {[%emt 0:00:00]} 6. dxc3 {[%emt 0:00:00]} Be7 {[%emt 0:00:00]} 7. Bd3 {[%emt 0:00:00]} O-O {[%emt 0:00:00]} 8. O-O {[%emt 0:00:00]} Nc6 {[%emt 0:00:00]} 9. h3 {[%emt 0:00:00]} Re8 {[%emt 0:00:00]} 10. Bf4 {[%emt 0:00:00]} Bf6 {[%emt 0:00:00]} 11. Re1 {[%emt 0:00:00]} a6 {[%emt 0:00:00]} 12. Qd2 {[%emt 0:00:00]} Ne5 {[%emt 0:00:00]} 13. Nxe5 {[%emt 0:00:00]} dxe5 {[%emt 0:00:00]} 14. Bxe5 {[%emt 0:00:00]} Be6 {[%emt 0:00:00]} 15. Qf4 {[%emt 0:00:00]} Bxe5 {[%emt 0:00:00]} 16. Rxe5 {[%emt 0:00:06]} Qd6 {[%emt 0:03:27]} 17. Qd4 {[%emt 0:11:09]} Rad8 {[%emt 0:06:28]} 18. Qxd6 {[%emt 0:00:31]} Rxd6 {[%emt 0:00:10]} 19. Rae1 {[%emt 0:01:05]} g6 {[%emt 0:05:58]} 20. f4 {[%emt 0:01:15]} f5 {[%emt 0:06:57]} 21. g4 {[%emt 0:04:39]} Kf8 {[%emt 0:08:14]} 22. gxf5 {[%emt 0:00:29]} Bf7 {[%emt 0:02:18]} 23. fxg6 {[%emt 0:03:08]} hxg6 {[%emt 0:01:07]} 24. Rxe8+ {[%emt 0:00:17]} Bxe8 {[%emt 0:00:18]} 25. Kf2 {[%emt 0:00:14]} Bc6 {[%emt 0:03:39]} 26. Re5 {[%emt 0:00:23]} Rf6 {[%emt 0:03:02]} 27. Kg3 {[%emt 0:00:30]} Bd7 {[%emt 0:03:47]} 28. h4 {[%emt 0:00:58]} Be8 {[%emt 0:04:15]} 29. f5 {[%emt 0:01:52]} b5 {[%emt 0:02:04]} 30. Kg4 {[%emt 0:02:17]} Bf7 {[%emt 0:02:30]} 31. fxg6 {[%emt 0:02:27]} Bxg6 {[%emt 0:02:14]} 32. h5 {[%emt 0:00:07]} Bxd3 {[%emt 0:05:14]} 33. cxd3 {[%emt 0:00:09]} Rf2 {[%emt 0:01:14]} 34. Rf5+ {[%emt 0:00:06]} Rxf5 {[%emt 0:00:32]} 35. Kxf5 {[%emt 0:00:01]} 1-0

[Event "7. Arber-Senioren-Cup 2019"]
[Site "Bodenmais"]
[Date "2019.07.29"]
[Round "3.5"]
[White "Fleuch, Hans-Juergen"]
[Black "Herbold, Manfred"]
[Result "0-1"]
[ECO "C40"]
[WhiteElo "1951"]
[BlackElo "2081"]
[Annotator "NA"]
[PlyCount "94"]
[EventDate "2019.07.27"]
[EventType "swiss"]
[EventCountry "GER"]
[SourceTitle "playchess.com"]
[Source "ChessBase"]
[SourceQuality "1"]
[TimeControl "5400+30"]

1. e4 {[%emt 0:00:00]} e5 {[%emt 0:00:00]} 2. Nf3 {[%emt 0:00:00]} d5 {[%emt 0:00:00]} 3. Nc3 {[%emt 0:00:00]} d4 {[%emt 0:00:00]} 4. Nb1 {[%emt 0:00:00]} Bd6 {[%emt 0:00:00]} 5. d3 {[%emt 0:00:00]} Ne7 {[%emt 0:00:00]} 6. Nbd2 {[%emt 0:00:00]} f6 {[%emt 0:00:00]} 7. c4 {[%emt 0:00:00]} a5 {[%emt 0:00:00]} 8. Be2 {[%emt 0:00:00]} Be6 {[%emt 0:00:00]} 9. Nh4 {[%emt 0:00:00]} Qd7 {[%emt 0:00:00]} 10. g3 {[%emt 0:04:45]} Nbc6 {[%emt 0:00:00]} 11. Nf1 {[%emt 0:04:57]} Bb4+ {[%emt 0:00:00]} 12. Bd2 {[%emt 0:01:17]} O-O {[%emt 0:00:00]} 13. Bxb4 {[%emt 0:04:57]} axb4 {[%emt 0:00:00]} 14. Nd2 {[%emt 0:04:43]} Ra7 {[%emt 0:00:00]} 15. a4 {[%emt 0:08:59]} bxa3 {[%emt 0:00:00]} 16. Rxa3 {[%emt 0:01:24]} Rxa3 {[%emt 0:00:00]} 17. bxa3 {[%emt 0:00:13]} Ra8 {[%emt 0:00:00]} 18. Nb1 {[%emt 0:00:40]} Na5 {[%emt 0:00:00]} 19. O-O {[%emt 0:00:31]} b5 {[%emt 0:00:27]} 20. cxb5 {[%emt 0:00:38]} Qxb5 {[%emt 0:00:13]} 21. f4 {[%emt 0:07:15]} exf4 {[%emt 0:01:08]} 22. gxf4 {[%emt 0:00:55]} c5 {[%emt 0:00:48]} 23. Nf3 {[%emt 0:09:56]} Nb3 {[%emt 0:03:27]} 24. Nfd2 {[%emt 0:11:35]} Nc6 {[%emt 0:03:02]} 25. Nxb3 {[%emt 0:02:54]} Bxb3 {[%emt 0:00:21]} 26. Qc1 {[%emt 0:00:27]} Na5 {[%emt 0:01:18]} 27. Nd2 {[%emt 0:04:10]} Be6 {[%emt 0:03:14]} 28. Qc2 {[%emt 0:01:44]} Rc8 {[%emt 0:10:15]} 29. Rb1 {[%emt 0:07:34]} Qc6 {[%emt 0:00:36]} 30. Rc1 {[%emt 0:05:39]} Qc7 {[%emt 0:03:51]} 31. f5 {[%emt 0:03:20]} Bf7 {[%emt 0:00:26]} 32. Qa4 {[%emt 0:01:37]} Be8 {[%emt 0:00:56]} 33. Qc2 {[%emt 0:00:28]} Qf4 {[%emt 0:01:03]} 34. Nc4 {[%emt 0:04:07]} Nxc4 {[%emt 0:02:04]} 35. Qxc4+ {[%emt 0:01:11]} Bf7 {[%emt 0:00:12]} 36. Qc2 {[%emt 0:00:56]} Qe3+ {[%emt 0:04:40]} 37. Kf1 {[%emt 0:00:39]} g6 {[%emt 0:00:30]} 38. fxg6 {[%emt 0:01:59]} hxg6 {[%emt 0:00:31]} 39. Rb1 {[%emt 0:02:13]} f5 {[%emt 0:02:54]} 40. Qc1 {[%emt 0:06:49]} Qh3+ {[%emt 0:00:19]} 41. Kg1 {[%emt 0:00:13]} fxe4 {[%emt 0:00:37]} 42. dxe4 {[%emt 0:00:09]} d3 {[%emt 0:01:18]} 43. Bf1 {[%emt 0:00:47]} Qg4+ {[%emt 0:00:19]} 44. Bg2 {[%emt 0:00:15]} c4 {[%emt 0:00:26]} 45. Qc3 {[%emt 0:00:20]} Rd8 {[%emt 0:01:37]} 46. Qf6 {[%emt 0:00:30]} Qd7 47. e5 d2 0-1

[Event "7. Arber-Senioren-Cup 2019"]
[Site "Bodenmais"]
[Date "2019.07.29"]
[Round "3.6"]
[White "Pirrot, Dieter"]
[Black "Schwalb, Manfred"]
[Result "1-0"]
[ECO "E73"]
[WhiteElo "2315"]
[BlackElo "1965"]
[Annotator "NA"]
[PlyCount "81"]
[EventDate "2019.07.27"]
[EventType "swiss"]
[EventCountry "GER"]
[SourceTitle "playchess.com"]
[Source "ChessBase"]
[SourceQuality "1"]
[TimeControl "5400+30"]

1. d4 {[%emt 0:00:00]} Nf6 {[%emt 0:00:00]} 2. c4 {[%emt 0:00:00]} g6 {[%emt 0:00:00]} 3. Nc3 {[%emt 0:00:00]} Bg7 {[%emt 0:00:00]} 4. e4 {[%emt 0:00:00]} d6 {[%emt 0:00:00]} 5. Be2 {[%emt 0:00:00]} O-O {[%emt 0:00:00]} 6. Be3 {[%emt 0:00:00]} Nbd7 {[%emt 0:00:00]} 7. g4 {[%emt 0:00:00]} e5 {[%emt 0:00:00]} 8. d5 {[%emt 0:00:00]} Nc5 {[%emt 0:00:00] E73: King's Indian: Averbakh Variation without 6...c5} 9. f3 {[%emt 0:00:00]} a5 {[%emt 0:00:00]} (9... h5 10. g5 Nh7 11. h4 f6 12. gxf6 Bxf6 13. Bf2 Be7 14. Kd2 Rf4 15. Qe1 a5 {½-½ (30) L'Ami,E (2634)-Amin,B (2693) Wijk aan Zee 2018}) 10. Qd2 {[%emt 0:00:00]} Ne8 {[%emt 0:00:00]} 11. h4 {[%emt 0:00:00]} f5 {[%emt 0:00:00]} 12. exf5 {[%emt 0:00:00]} gxf5 {[%emt 0:00:00]} 13. g5 {[%emt 0:00:00]} e4 $146 {[%emt 0:00:00]} ({Predecessor:} 13... Qe7 14. Nh3 Bd7 15. O-O-O Na4 16. Nxa4 Bxa4 {0-1 (51) Bergsson,S (2093)-Lie,E (2473) Kragero 2018}) 14. f4 {[%emt 0:00:00]} Bd7 {[%emt 0:00:00]} 15. h5 {[%emt 0:00:00]} h6 {[%emt 0:00:00]} 16. Nh3 {[%emt 0:00:36]} Kh7 {[%emt 0:00:00]} 17. O-O-O {[%emt 0:02:38]} a4 {[%emt 0:01:15]} 18. Bd4 {[%emt 0:06:14]} Nd3+ {[%emt 0:03:03]} 19. Bxd3 {[%emt 0:00:32]} Bxd4 {[%emt 0:00:15]} 20. Bc2 {[%emt 0:01:38]} Bg7 {[%emt 0:01:50]} 21. Rdg1 {[%emt 0:10:33]} c5 {[%emt 0:05:39]} 22. Qg2 {[%emt 0:10:15]} Bd4 {[%emt 0:03:29]} 23. gxh6 {[%emt 0:35:11]} Qe7 {[%emt 0:10:14]} 24. a3 {[%emt 0:03:52]} Nc7 {[%emt 0:19:35]} 25. Qg6+ {[%emt 0:01:11]} Kh8 {[%emt 0:00:06]} 26. h7 {[%emt 0:00:28]} Bxg1 {[%emt 0:08:47]} 27. Rxg1 {[%emt 0:01:36]} Qf6 {[%emt 0:01:56]} 28. Qg3 {[%emt 0:03:10]} b5 {[%emt 0:05:31]} 29. cxb5 {[%emt 0:00:54]} Nxb5 {[%emt 0:01:23]} 30. Nxb5 {[%emt 0:02:21]} Bxb5 {[%emt 0:00:04]} 31. h6 {[%emt 0:11:30]} Qxh6 {[%emt 0:00:58]} 32. Qc3+ {[%emt 0:00:16]} Qf6 {[%emt 0:00:33]} 33. Rg8+ {[%emt 0:00:15]} Kxh7 {[%emt 0:00:43]} 34. Qxf6 {[%emt 0:00:12]} Rxf6 {[%emt 0:03:11]} 35. Rxa8 {[%emt 0:00:07]} Rh6 {[%emt 0:00:34]} 36. Ng5+ {[%emt 0:00:49]} Kg7 {[%emt 0:01:31]} 37. Ra7+ {[%emt 0:00:35]} Kf6 {[%emt 0:01:14]} 38. Bxa4 {[%emt 0:02:07]} Bd3 $18 {[%emt 0:04:38]} (38... Bxa4 $142 39. Rxa4 Rh1+ 40. Kc2 Rf1) 39. Rd7 {[%emt 0:01:07]} Rh4 {[%emt 0:04:31]} 40. Rxd6+ {[%emt 0:00:16]} Kg7 {[%emt 0:00:26]} 41. Ne6+ {[%emt 0:01:00]} 1-0

[Event "7. Arber-Senioren-Cup 2019"]
[Site "Bodenmais"]
[Date "2019.07.29"]
[Round "3.7"]
[White "Steinbach, Peter"]
[Black "Pribyl, Josef"]
[Result "0-1"]
[ECO "B09"]
[WhiteElo "1958"]
[BlackElo "2234"]
[Annotator "NA"]
[PlyCount "38"]
[EventDate "2019.07.27"]
[EventType "swiss"]
[EventCountry "GER"]
[SourceTitle "playchess.com"]
[Source "ChessBase"]
[SourceQuality "1"]
[TimeControl "5400+30"]

1. e4 {[%emt 0:00:00]} d6 {[%emt 0:00:00]} 2. d4 {[%emt 0:00:00]} Nf6 {[%emt 0:00:00]} 3. Nc3 {[%emt 0:00:00]} g6 {[%emt 0:00:00]} 4. f4 {[%emt 0:00:00]} Bg7 {[%emt 0:00:00]} 5. Nf3 {[%emt 0:00:00]} O-O {[%emt 0:00:00]} 6. Bd3 {[%emt 0:00:00]} Na6 {[%emt 0:00:00]} 7. O-O {[%emt 0:00:00]} c5 {[%emt 0:00:00]} 8. d5 {[%emt 0:00:00]} Nc7 {[%emt 0:00:00]} 9. a4 {[%emt 0:00:00]} e6 {[%emt 0:00:00]} 10. Bc4 {[%emt 0:00:00]} exd5 {[%emt 0:00:00]} 11. exd5 {[%emt 0:00:00]} Re8 {[%emt 0:00:00]} 12. h3 {[%emt 0:00:00]} b6 {[%emt 0:00:00]} 13. Re1 {[%emt 0:00:00]} a6 {[%emt 0:00:00]} 14. Be3 {[%emt 0:00:00]} Bd7 {[%emt 0:00:00]} 15. Qd3 {[%emt 0:00:00]} Qb8 {[%emt 0:00:00]} 16. Bf2 {[%emt 0:05:39]} Qb7 {[%emt 0:00:00]} 17. Ng5 {[%emt 0:10:01]} b5 {[%emt 0:00:00]} 18. axb5 {[%emt 0:00:28]} axb5 {[%emt 0:00:00]} 19. Rxa8 {[%emt 0:00:10]} Rxa8 {[%emt 0:00:00]} 0-1